fUST/lending_fUST_20251223
["ID","MTS","AMOUNT","RATE_DAILY","PERIOD"]
[399533904,1766454644095,-645.83041803,0.00013821,2]
[399533905,1766454644105,-458.98847045,0.00013821,2]
[399533906,1766454644115,-500.91776389,0.00013821,2]
[399533907,1766454644125,-502.45941554,0.00013821,2]
[399533909,1766454644135,-501.42912925,0.00013821,2]
[399533910,1766454644144,-500.36491138,0.00013821,2]
[399533911,1766454644154,-1000.0,0.00013821,2]
[399533912,1766454644164,-503.34689088,0.00013821,2]
[399533913,1766454644174,-500.9297502,0.00013821,2]
[399533914,1766454644183,-500.93933847,0.00013821,2]
[399533915,1766454644192,-1000.0,0.00013821,2]
[399533916,1766454644202,-500.52435634,0.00013821,2]
[399533917,1766454644212,-1000.0,0.00013821,2]
[399533918,1766454644223,-1000.0,0.00013821,2]
[399533920,1766454644232,-500.40828203,0.00013821,2]
[399533921,1766454644242,-1001.81529664,0.00013821,2]
[399533923,1766454644252,-1000.0,0.00013821,2]
[399533925,1766454644261,-493.15587592,0.00013821,2]
[399533927,1766454644271,-1002.2857264,0.00013821,2]
[399533928,1766454644280,-1004.07531272,0.00013821,2]
[399533929,1766454644289,-500.21881077,0.00013821,2]
[399533930,1766454644298,-501.58805408,0.00013821,2]
[399533931,1766454644307,-209.49401187,0.00013821,2]
[399533932,1766454644316,-336.67440047,0.00014,2]
[399533933,1766454644325,-1172.0547007,0.00014067,2]
[399533934,1766454644334,-303.42388676,0.00014221,2]
[399533935,1766454644344,-1000.0,0.00014247,2]
[399533936,1766454644354,-1000.0,0.00014247,2]
[399533937,1766454644363,-1000.0,0.00014247,2]
[399533938,1766454644373,-260.0,0.00014247,2]
[399533939,1766454644382,-316.92655845,0.0001431,2]
[399533940,1766454644393,-1036.68026637,0.00014368,2]
[399533941,1766454644403,-1500.0,0.00014368,2]
[399533942,1766454644412,-1500.0,0.00014368,2]
[399533943,1766454644421,-1500.0,0.00014368,2]
[399533944,1766454644432,-1500.0,0.00014368,2]
[399533945,1766454644442,-1500.0,0.00014368,2]
[399533946,1766454644452,-261.520753,0.0001442,2]
[399533947,1766454644463,-625.52536056,0.0001463,30]
[399533948,1766454644473,-1500.0,0.00014795,2]
[399533949,1766454644482,-1500.0,0.00014795,2]
[399533950,1766454644492,-253.39949575,0.00014795,2]
[399533951,1766454644501,-360.0,0.00014795,2]
[399533952,1766454644511,-395.28362689,0.00014795,3]
[399533953,1766454644521,-2000.0,0.00014916,2]
[399533954,1766454644531,-1002.32191946,0.00014916,2]
[399533955,1766454644540,-2000.0,0.00014916,2]
[399533956,1766454644549,-2000.0,0.00014916,2]
[399533957,1766454644558,-2000.0,0.00014916,2]
[399533958,1766454644567,-500.0,0.00014948,2]
[399533959,1766454644576,-1500.0,0.00015,2]
[399533960,1766454644587,-150.0,0.00015,3]
[399533961,1766454644597,-530.47845008,0.00015,3]
[399533962,1766454644607,-520.0,0.00015,2]
[399533963,1766454644616,-20323.0,0.00015,2]
[399533964,1766454644625,-1000.0,0.00015,2]
[399533965,1766454644636,-151.0,0.00015,2]
[399533966,1766454644645,-151.0,0.00015,2]
[399533967,1766454644654,-151.0,0.00015,2]
[399533968,1766454644663,-151.0,0.00015,2]
[399533969,1766454644672,-291.065921,0.00015,2]
[399533970,1766454644682,-291.065921,0.00015,2]
[399533971,1766454644691,-291.065921,0.00015,2]
[399533972,1766454644991,-291.065921,0.00015,2]
[399533973,1766454645002,-151.0,0.00015,2]
[399533974,1766454645012,-151.0,0.00015,2]
[399533975,1766454645022,-151.0,0.00015,2]
[399533976,1766454645031,-1024.92569478,0.00015,2]
[399533977,1766454645092,-574.74227522,0.00015,2]
[399533978,1766454645101,-1599.66797,0.00015,2]
[399533979,1766454645110,-1599.66797,0.00015,2]
[399533980,1766454645120,-1599.66797,0.00015,2]
[399533981,1766454645130,-151.32597,0.00015,2]
[399533982,1766454645140,-151.32597,0.00015,2]
[399533983,1766454645150,-151.32597,0.00015,2]
[399533984,1766454645159,-151.32597,0.00015,2]
[399533985,1766454645168,-827.112169,0.00015,2]
[399533986,1766454645177,-827.112169,0.00015,2]
[399533987,1766454645187,-827.112169,0.00015,2]
[399533988,1766454645196,-827.112169,0.00015,2]
[399533989,1766454645207,-151.474389,0.00015,2]
[399533990,1766454645220,-151.0,0.00015,2]
[399533991,1766454645229,-151.0,0.00015,2]
[399533992,1766454645238,-151.0,0.00015,2]
[399533993,1766454645247,-151.0,0.00015,2]
[399533994,1766454645257,-262.771584,0.00015,2]
[399533995,1766454645266,-151.0,0.00015,2]
[399533996,1766454645275,-151.0,0.00015,2]
[399533997,1766454645285,-151.0,0.00015,2]
[399533998,1766454645295,-151.0,0.00015,2]
[399533999,1766454645304,-156.915569,0.00015,2]
[399534000,1766454645314,-1235.149237,0.00015,2]
[399534001,1766454645323,-132.8339768,0.00015,2]
[399534016,1766454647730,-150.196,9.794e-05,2]
[399534017,1766454647740,-600.0,0.00013537,2]
[399534018,1766454647749,-720.0,0.00014891,2]
[399534019,1766454647759,-130.1916252,0.00015,2]
[399534020,1766454647769,-1235.149237,0.00015,2]
[399534021,1766454647778,-1235.149237,0.00015,2]
[399534022,1766454647787,-263.025602,0.00015,2]
[399534023,1766454647796,-151.0,0.00015,2]
[399534024,1766454647805,-127.45924385,0.00015,2]
[399534026,1766455277134,200.0,0.0002242,120]
[399534028,1766455439926,5000.0,0.0001,10]
[399534030,1766455530340,-180.0,8.122e-05,2]
[399534031,1766455591127,-181.28754553,8.162e-05,2]
[399534032,1766455591148,-3728.0,8.203e-05,2]
[399534033,1766455591168,-4027.9375323,8.203e-05,2]
[399534034,1766455591192,-8220.48360717,8.286e-05,2]
[399534044,1766455680958,174.39,3.8e-06,2]
[399534045,1766455734211,10000.0,0.000154,120]
[399534046,1766455788442,10000.0,0.000154,120]
[399534097,1766455831813,-1831.71838125,8.186e-05,2]
[399534100,1766455831825,-48677.88871714,8.186e-05,2]
[399534102,1766455831837,-10705.49593843,8.186e-05,2]
[399534170,1766455839909,-1987.87049881,8.186e-05,2]
[399534176,1766455839958,-8965.26925915,8.186e-05,2]
[399534479,1766455843011,-4260.0,8.186e-05,2]
[399534481,1766455843024,-31418.17967045,8.186e-05,2]
[399534493,1766455843126,-1795.300965,8.186e-05,2]
[399534663,1766455845908,-725.61998,8.186e-05,2]
[399534664,1766455845919,-53331.35481993,8.186e-05,2]
[399534665,1766455845930,-1259.30593299,8.186e-05,2]
[399534666,1766455845962,-217744.89181427,8.186e-05,2]
[399534667,1766455845971,-150.0,8.745e-05,2]
[399534668,1766455845979,-150.0,9.161e-05,2]
[399534669,1766455845988,-150.0,9.681e-05,2]
[399534670,1766455845997,-151.014,9.966e-05,2]
[399534671,1766455846006,-151.583,9.966e-05,2]
[399534672,1766455846015,-184.357,9.966e-05,2]
[399534673,1766455846023,-150.0,0.00010102,2]
[399534674,1766455846032,-213.91930372,0.00010162,2]
[399534675,1766455846041,-15697.86510287,0.00010231,2]
[399534676,1766455846051,-250.0,0.00010411,2]
[399534677,1766455846060,-150.0,0.00010523,2]
[399534678,1766455846070,-150.0,0.00010878,2]
[399534679,1766455846081,-500.0,0.00010959,2]
[399534680,1766455846091,-500.0,0.00010959,2]
[399534681,1766455846101,-500.0,0.00010959,2]
[399534682,1766455846111,-500.0,0.00010959,2]
[399534683,1766455846120,-467.4802694,0.00010959,2]
[399534684,1766455846129,-1041.66666667,0.00011141,2]
[399534685,1766455846138,-150.0,0.00011365,2]
[399534686,1766455846147,-161.69,0.00011762,2]
[399534687,1766455846156,-246.55106192,0.00012162,2]
[399534688,1766455846165,-181.9,0.00012182,2]
[399534689,1766455846173,-194.46073245,0.00012602,2]
[399534690,1766455846182,-3288.63915586,0.000129,2]
[399534691,1766455846191,-3288.63915584,0.000129,2]
[399534692,1766455846201,-206.27022175,0.0001324,2]
[399534693,1766455846211,-167.22044953,0.00013273,2]
[399534694,1766455846220,-480.73388109,0.00013273,2]
[399534695,1766455846229,-500.0,0.00013273,2]
[399534696,1766455846238,-500.0,0.00013273,2]
[399534697,1766455846247,-500.0,0.00013273,2]
[399534698,1766455846257,-232.07001709,0.00013273,2]
[399534699,1766455846266,-527.78739212,0.00013273,2]
[399534700,1766455846275,-500.0,0.00013273,2]
[399534701,1766455846284,-500.0,0.00013356,2]
[399534702,1766455846294,-207.71170281,0.00013419,2]
[399534703,1766455846303,-10000.0,0.0001354,2]
[399534704,1766455846312,-406.94,0.00013598,2]
[399534705,1766455846321,-520.93906433,0.00013698,2]
[399534706,1766455846330,-1425.0,0.00013699,2]
[399534707,1766455846339,-501.71656166,0.00013699,2]
[399534708,1766455846349,-500.0,0.00013699,2]
[399534709,1766455846357,-500.52836956,0.00013699,2]
[399534710,1766455846367,-500.0,0.00013699,2]
[399534711,1766455846375,-2000.0,0.00013699,7]
[399534712,1766455846384,-160.0,0.00013699,2]
[399534713,1766455846393,-547.81299619,0.00013821,2]
[399534714,1766455846402,-531.19665594,0.00013821,2]
[399534715,1766455846411,-1000.0,0.00013821,2]
[399534716,1766455846420,-1000.0,0.00013821,2]
[399534717,1766455846429,-197.576384,0.00013973,2]
[399534718,1766455846438,-2000.0,0.00014119,7]
[399534719,1766455846448,-500.0,0.00014157,2]
[399534720,1766455846467,-279.18282011,0.00014162,2]
[399534721,1766455846477,-1000.0,0.00014247,2]
[399534722,1766455846486,-1000.0,0.00014247,2]
[399534723,1766455846503,-260.0,0.00014247,2]
[399534724,1766455846513,-1500.0,0.00014368,2]
[399534725,1766455846522,-1500.0,0.00014368,2]
[399534726,1766455846531,-512.0,0.00014418,2]
[399534727,1766455846541,-512.0,0.00014483,2]
[399534728,1766455846553,-2000.0,0.00014539,7]
[399534729,1766455846562,-512.0,0.00014616,2]
[399534730,1766455846576,-512.0,0.00014624,2]
[399534731,1766455846586,-512.0,0.0001465,2]
[399534732,1766455846595,-512.0,0.00014651,2]
[399534733,1766455846606,-527.10279775,0.000147,2]
[399534778,1766457032355,-956.62484928,9.751e-05,2]
[399534779,1766457032367,-597.21929559,9.751e-05,2]
[399534780,1766457032378,-3446.15585513,9.751e-05,2]
[399534781,1766457032387,-171.23961526,9.9e-05,2]
[399534782,1766457032396,-155.8,0.0001,2]
[399534783,1766457032406,-155.8,0.000102,2]
[399534784,1766457032415,-416.0,0.000104,2]
[399534785,1766457032424,-202.06274601,0.000119,2]
[399534786,1766457032433,-1041.66666667,0.00012079,2]
[399534787,1766457032442,-1200.0,0.00013171,2]
[399534788,1766457032451,-500.0,0.00013172,2]
[399534789,1766457032461,-176.78826982,0.00013172,2]
[399534790,1766457032470,-167.9103734,0.00013172,2]
[399534791,1766457032480,-500.0,0.00013172,2]
[399534792,1766457032489,-307.47948327,0.00013172,2]
[399534793,1766457032498,-500.0,0.00013172,2]
[399534794,1766457032507,-300.0,0.00013172,2]
[399534795,1766457032517,-300.0,0.00013172,2]
[399534796,1766457032526,-300.0,0.00013172,2]
[399534797,1766457032535,-53860.92912061,0.00013173,2]
[399534798,1766457032557,-89053.91833492,0.00013173,2]
[399534799,1766457032567,-1023.0,0.00013254,2]
[399534800,1766457032575,-15978.70179773,0.00013255,2]
[399534801,1766457032593,-689.2028184,0.00013255,2]
[399534820,1766457038003,-370.14274353,0.0001317,2]
[399534821,1766457038013,-199.81483321,0.0001317,2]
[399534822,1766457038023,-319.82242326,0.0001317,2]
[399534823,1766457038035,-135.8596463,0.0001317,2]
[399534824,1766457038050,-33332.09538387,0.00013255,2]
[399534825,1766457038060,-163.68737157,0.00013256,2]
[399534826,1766457038075,-500.0,0.00013273,2]
[399534827,1766457038084,-500.0,0.00013273,2]
[399534828,1766457038094,-500.0,0.00013273,2]
[399534829,1766457038104,-500.0,0.00013356,2]
[399534830,1766457038114,-416.0,0.000134,2]
[399534831,1766457038123,-10000.0,0.0001354,2]
[399534832,1766457038133,-500.0,0.00013698,2]
[399534833,1766457038143,-500.0,0.00013698,2]
[399534834,1766457038152,-500.0,0.00013698,2]
[399534835,1766457038162,-500.0,0.00013698,2]
[399534836,1766457038172,-500.0,0.00013698,2]
[399534837,1766457038182,-500.0,0.00013698,2]
[399534838,1766457038192,-500.0,0.00013698,2]
[399534839,1766457038202,-500.0,0.00013698,2]
[399534840,1766457038212,-500.0,0.00013698,2]
[399534841,1766457038222,-500.0,0.00013698,2]
[399534842,1766457038231,-64742.5708988,0.00013699,2]
[399534843,1766457038241,-260.01875218,0.00013699,2]
[399534844,1766457038251,-500.0,0.00013699,2]
[399534845,1766457038262,-1000.0,0.00013821,2]
[399534846,1766457038271,-1000.0,0.00013821,2]
[399534847,1766457038280,-1000.0,0.00013821,2]
[399534848,1766457038290,-1000.0,0.00013848,2]
[399534849,1766457038299,-232.88587676,0.000139,2]
[399534850,1766457038308,-4003.48837977,0.00014,2]
[399534851,1766457038318,-160.0,0.000141,2]
[399534852,1766457038327,-272.91495155,0.00014247,2]
[399534853,1766457038337,-1587.01397736,0.00014368,2]
[399534854,1766457038347,-1500.0,0.00014368,2]
[399534855,1766457038356,-1441.81413818,0.00014368,2]
[399534856,1766457038366,-2044.9530247,0.00014452,2]
[399534857,1766457038376,-260.0,0.00014648,2]
[399534858,1766457038385,-187.04486981,0.0001469,2]
[399534859,1766457038395,-612.55471123,0.000147,2]
[399534860,1766457038404,-2000.0,0.000147,2]
[399534861,1766457038414,-2000.0,0.000147,2]
[399534862,1766457038423,-2000.0,0.000147,2]
[399534863,1766457038433,-40168.33818334,0.000147,5]
[399534864,1766457038442,-512.0,0.00014701,2]
[399534865,1766457038452,-512.0,0.00014724,2]
[399534866,1766457038461,-512.0,0.00014742,2]
[399534867,1766457038471,-512.0,0.00014885,2]
[399534868,1766457038480,-512.0,0.0001489,2]
[399534869,1766457038490,-513.68149288,0.00014916,2]
[399534870,1766457038500,-512.0,0.00014934,2]
[399534871,1766457038509,-512.0,0.00014954,2]
[399534872,1766457038518,-535.41468129,0.00015,2]
[399534896,1766457040243,-222.55446587,0.00015,2]
[399534898,1766457040253,-1000.0,0.00015,2]
[399534900,1766457040262,-151.0,0.00015,2]
[399534902,1766457040272,-281.26687579,0.00015003,2]
[399535376,1766457046024,-230.73312421,0.00015003,2]
[399535377,1766457046034,-512.0,0.00015021,2]
[399535379,1766457046044,-207.39687579,0.00015068,2]
[399535381,1766457046143,-12.66574121,0.00015068,2]
[399535382,1766457046153,-512.0,0.00015072,2]
[399535383,1766457046162,-151.0,0.000151,2]
[399535384,1766457046172,-151.0,0.000151,2]
[399535385,1766457046181,-512.0,0.00015116,2]
[399535386,1766457046191,-512.0,0.00015141,2]
[399535387,1766457046200,-512.0,0.00015142,2]
[399535388,1766457046210,-360.0,0.00015196,2]
[399535389,1766457046219,-512.0,0.00015215,2]
[399535390,1766457046229,-512.0,0.0001524,2]
[399535391,1766457046238,-600.0,0.00015299,2]
[399535392,1766457046248,-999.17829025,0.000153,2]
[399535393,1766457046257,-333.33333333,0.000153,2]
[399535394,1766457046266,-512.0,0.00015359,2]
[399535395,1766457046276,-620.27626803,0.00015362,30]
[399535396,1766457046285,-286.65018975,0.000154,2]
[399535397,1766457046294,-333.33333333,0.000154,2]
[399535398,1766457046304,-333.05943004,0.000154,2]
[399535399,1766457046313,-179.33047137,0.000154,2]
[399535400,1766457046322,-460.7611047,0.000154,2]
[399535401,1766457046331,-167.79702618,0.000154,2]
[399535402,1766457046340,-333.33333333,0.000154,2]
[399535403,1766457046349,-319.97109958,0.000154,2]
[399535404,1766457046359,-325.97062201,0.000154,2]
[399535405,1766457046368,-165.91628036,0.000154,2]
[399535406,1766457046377,-232.2857972,0.000154,2]
[399535407,1766457046386,-162.985311,0.000154,2]
[399535408,1766457046395,-159.98554978,0.000154,2]
[399535409,1766457046404,-512.0,0.00015485,2]
[399535410,1766457046413,-512.0,0.00015561,2]
[399535411,1766457046423,-982.99779245,0.00015589,5]
[399535412,1766457463246,1603.0,0.00015,120]
[399535413,1766457820609,-150.0,0.00014867,30]
[399535444,1766458231994,-3869.51465548,7.071e-05,2]
[399535446,1766458232003,-201.7211241,7.196e-05,2]
[399535448,1766458232012,-303.51189106,8.263e-05,2]
[399535450,1766458232021,-150.0,8.696e-05,2]
[399535452,1766458232031,-434.58517742,8.801e-05,2]
[399535454,1766458232040,-150.0,9.11e-05,2]
[399535456,1766458232049,-238.03092643,9.196e-05,2]
[399535458,1766458232058,-186.98,9.525e-05,2]
[399535460,1766458232067,-300.0,9.935e-05,2]
[399535462,1766458232076,-1200.0,9.935e-05,2]
[399535464,1766458232084,-32861.15945763,9.936e-05,2]
[399535467,1766458232101,-1178.56637483,9.936e-05,2]
[399535469,1766458232113,-2697.80971784,9.936e-05,2]
[399535471,1766458232123,-500.0,9.936e-05,2]
[399535473,1766458232132,-106.74304834,9.936e-05,2]
[399535514,1766458238041,-573.75178887,9.935e-05,2]
[399535515,1766458238051,-498.67060507,9.935e-05,2]
[399535516,1766458238062,-1.32939493,9.935e-05,2]
[399535517,1766458238071,-500.0,9.935e-05,2]
[399535518,1766458238081,-500.0,9.935e-05,2]
[399535519,1766458238090,-500.0,9.935e-05,2]
[399535520,1766458238100,-500.0,9.935e-05,2]
[399535521,1766458238110,-195.72660507,9.935e-05,2]
[399535522,1766458238169,-153.55243805,9.935e-05,2]
[399535523,1766458238180,-500.0,9.935e-05,2]
[399535524,1766458238189,-500.0,9.935e-05,2]
[399535525,1766458238199,-500.0,9.935e-05,2]
[399535526,1766458238210,-430.87699941,9.937e-05,2]
[399535609,1766458240931,-769.12300059,9.937e-05,2]
[399535610,1766458240940,-249.3,9.939e-05,2]
[399535612,1766458240950,-158.0,0.0001,2]
[399535614,1766458240960,-158.0,0.000102,2]
[399535616,1766458240969,-311.63,0.00010353,2]
[399535617,1766458240979,-158.0,0.000104,2]
[399535619,1766458240988,-303.51189106,0.00010411,2]
[399535621,1766458240997,-219.1851092,0.00010646,2]
[399535794,1766458243432,-771.99000221,0.00010646,2]
[399536009,1766458246221,-1331.17307,0.00010646,2]
[399536010,1766458246236,-1019.44285883,0.00010646,2]
[399536011,1766458246246,-373.95,0.00010767,2]
[399536012,1766458246255,-161359.35587567,0.0001082,2]
[399536013,1766458246266,-295.13886484,0.0001082,2]
[399536037,1766458353310,1774.54080768,0.000154,120]
[399536080,1766459432255,-150.0,8.272e-05,2]
[399536083,1766459432265,-192.92608309,8.328e-05,2]
[399536085,1766459432274,-152.1351458,8.383e-05,2]
[399536087,1766459432284,-1761.5017,8.711e-05,2]
[399536089,1766459432294,-1339.9793,8.711e-05,2]
[399536091,1766459432303,-150.0,8.721e-05,2]
[399536093,1766459432312,-150.0,9.125e-05,2]
[399536094,1766459432321,-176.92,9.454e-05,2]
[399536096,1766459432330,-221.14,9.848e-05,2]
[399536098,1766459432339,-265.37,0.00010242,2]
[399536100,1766459432349,-359.13689352,0.00010263,2]
[399536103,1766459432359,-227.65277804,0.00010328,2]
[399536105,1766459432368,-1200.0,0.00010635,2]
[399536107,1766459432377,-309.6,0.00010636,2]
[399536109,1766459432386,-300.0,0.00010685,2]
[399536110,1766459432396,-1031.0,0.00010686,2]
[399536113,1766459432405,-341.6795602,0.00010697,2]
[399536114,1766459432414,-483.25322701,0.00010718,2]
[399536116,1766459432423,-593.997919,0.00010718,2]
[399536119,1766459432432,-500.0,0.00010719,2]
[399536121,1766459432441,-500.0,0.00010719,2]
[399536123,1766459432451,-338.31325219,0.00010719,2]
[399536125,1766459432460,-27662.26134159,0.0001072,2]
[399536130,1766459432500,-420.90262231,0.0001072,2]
[399536132,1766459432511,-878.59,0.0001072,2]
[399536183,1766459438426,-14047.48483495,0.0001072,2]
[399536184,1766459438437,-90486.37126366,0.0001072,2]
[399536185,1766459438449,-23376.4860013,0.0001072,2]
[399536191,1766459440652,-430.55025904,0.0001072,2]
[399536194,1766459443430,-2002.68986243,0.0001072,2]
[399536202,1766459446384,-966.88,0.0001072,2]
[399536262,1766460632530,-150.0,8.263e-05,2]
[399536264,1766460632539,-150.0,8.663e-05,2]
[399536266,1766460632548,-188.25989619,8.676e-05,2]
[399536267,1766460632557,-150.0,9.076e-05,2]
[399536269,1766460632566,-150.0,9.489e-05,2]
[399536271,1766460632575,-150.0,9.901e-05,2]
[399536273,1766460632583,-156.71,0.00010231,2]
[399536274,1766460632592,-161.21369531,0.00010506,2]
[399536276,1766460632601,-184.8788594,0.00010506,2]
[399536278,1766460632611,-152.43941609,0.00010529,2]
[399536280,1766460632619,-1200.0,0.00010619,2]
[399536282,1766460632628,-500.0,0.00010619,2]
[399536283,1766460632638,-500.0,0.00010619,2]
[399536285,1766460632648,-220.0666156,0.00010619,2]
[399536287,1766460632657,-13331.65489949,0.0001062,2]
[399536289,1766460632765,-2782.90137656,0.0001062,2]
[399536302,1766460638452,-10041.97607162,0.0001062,2]
[399536303,1766460638527,-545.178,0.0001062,2]
[399536623,1766460643556,-435.015,0.0001062,2]
[399537191,1766461709986,2000.0,0.00014,30]
[399537192,1766461710231,2000.0,0.00014,30]
[399537193,1766461710500,2000.0,0.00014,30]
[399537194,1766461710883,2000.0,0.00014,30]
[399537195,1766461711020,2000.0,0.00014,30]
[399537196,1766461711262,2000.0,0.00014,30]
[399537197,1766461711571,2000.0,0.00014,30]
[399537198,1766461711801,2000.0,0.00014,30]
[399537199,1766461712099,2000.0,0.00014,30]
[399537200,1766461712338,2000.0,0.00014,30]
[399537201,1766461764023,2000.0,0.00014,30]
[399537202,1766461764323,2000.0,0.00014,30]
[399537203,1766461764586,2000.0,0.00014,30]
[399537204,1766461764834,2000.0,0.00014,30]
[399537205,1766461765093,2000.0,0.00014,30]
[399537206,1766461765540,2000.0,0.00014,30]
[399537207,1766461765858,2000.0,0.00014,30]
[399537208,1766461766867,2000.0,0.00014,30]
[399537209,1766461767185,2000.0,0.00014,30]
[399537210,1766461767427,2000.0,0.00014,30]
[399537211,1766461777648,2000.0,0.00014,30]
[399537212,1766461778276,2000.0,0.00014,30]
[399537213,1766461778332,2000.0,0.00014,30]
[399537214,1766461778565,2000.0,0.00014,30]
[399537215,1766461778829,2000.0,0.00014,30]
[399537216,1766461779164,2000.0,0.00014,30]
[399537217,1766461779412,835.25789942,0.00014,30]
[399537218,1766461779437,1164.74210058,0.00014,30]
[399537219,1766461779658,2000.0,0.00014,30]
[399537220,1766461779913,2000.0,0.00014,30]
[399537221,1766461780154,2000.0,0.00014,30]
[399537240,1766461832816,-542.0,8.671e-05,2]
[399537242,1766461832825,-184.49469827,8.724e-05,2]
[399537245,1766461832834,-223.1954099,9.719e-05,2]
[399537247,1766461832844,-198.32174126,0.00010453,2]
[399537249,1766461832853,-300.0,0.00010519,2]
[399537250,1766461832862,-500.0,0.00010519,2]
[399537252,1766461832871,-354.04663092,0.00010519,2]
[399537255,1766461832881,-220.05282842,0.00010519,2]
[399537257,1766461832890,-3999.37644225,0.0001052,2]
[399537287,1766461838701,-996000.62355775,0.0001052,2]
[399537288,1766461838711,-408.36980748,0.00010604,2]
[399537289,1766461838720,-186.57575094,0.00010624,2]
[399537290,1766461838729,-150.0,0.00010691,2]
[399537291,1766461838738,-217.70374396,0.00010724,2]
[399537292,1766461838748,-1041.66666667,0.00010799,2]
[399537293,1766461838757,-297.432,0.0001092,2]
[399537294,1766461838766,-298.158,0.0001092,2]
[399537295,1766461838776,-2174.66456205,0.00010921,2]
[399537296,1766461838785,-321.01171768,0.00010927,2]
[399537297,1766461838795,-524.88102914,0.00010958,2]
[399537298,1766461838804,-999.0,0.00010959,2]
[399537299,1766461838814,-500.0,0.00010959,2]
[399537300,1766461838823,-500.0,0.00010959,2]
[399537301,1766461838832,-461.36595568,0.00010959,2]
[399537302,1766461838841,-987.46,0.00011,2]
[399537303,1766461838851,-353.81992463,0.00011078,2]
[399537304,1766461838860,-404.36562815,0.00011078,2]
[399537305,1766461838869,-631.18947269,0.00011078,2]
[399537306,1766461838879,-633.917,0.00011122,2]
[399537307,1766461838888,-1365.344,0.00011122,2]
[399537308,1766461838897,-2160.0,0.00011122,2]
[399537309,1766461838906,-315.84940082,0.00011124,2]
[399537310,1766461838915,-577.82109182,0.00011124,2]
[399537311,1766461838924,-2174.66456205,0.00011128,2]
[399537312,1766461838933,-182.69,0.000112,2]
[399537313,1766461838942,-360.97074379,0.00011321,2]
[399537314,1766461838951,-1027.23749657,0.00011321,2]
[399537315,1766461838961,-2174.66456207,0.00011395,2]
[399537316,1766461838970,-250.31929493,0.00011457,2]
[399537317,1766461838979,-563.45277039,0.00011518,2]
[399537318,1766461838988,-1603.4535298,0.00011518,2]
[399537319,1766461838998,-420.0,0.00011565,2]
[399537320,1766461839008,-476.73,0.00011602,2]
[399537321,1766461839018,-179.41506712,0.00011661,2]
[399537322,1766461839027,-274.04,0.0001171,2]
[399537323,1766461839036,-365.39,0.00012219,2]
[399537324,1766461839045,-500.0,0.00012502,2]
[399537325,1766461839055,-500.0,0.00012502,2]
[399537326,1766461839064,-500.0,0.00012502,2]
[399537327,1766461839074,-150.0,0.00012502,2]
[399537328,1766461839083,-150.0,0.00012502,2]
[399537329,1766461839092,-500.0,0.00012502,2]
[399537330,1766461839102,-500.0,0.00012639,2]
[399537331,1766461839111,-500.0,0.00012639,2]
[399537332,1766461839120,-500.0,0.00012639,2]
[399537333,1766461839130,-150.0,0.00012639,2]
[399537334,1766461839139,-500.0,0.00012639,2]
[399537335,1766461839148,-587.0,0.00012715,2]
[399537336,1766461839158,-250.91278965,0.00012724,2]
[399537337,1766461839167,-456.73,0.00012728,2]
[399537338,1766461839176,-500.0,0.00012776,2]
[399537339,1766461839185,-500.0,0.00012776,2]
[399537340,1766461839194,-500.0,0.00012776,2]
[399537341,1766461839203,-255.05125444,0.00012776,2]
[399537342,1766461839213,-500.0,0.00012776,2]
[399537343,1766461839222,-500.0,0.00012913,2]
[399537344,1766461839231,-500.0,0.00012913,2]
[399537345,1766461839241,-426.14402228,0.00012913,2]